[Event "Titled Tuesday Blitz February 22 Late 2022"]
[White "Sharafiev, Azat"]
[Black "Tomiello, Mateus Costamilan"]
[WhiteFideId "4186214"]
[BlackFideId "22701958"]
[WhiteElo "2299"]
[BlackElo "1975"]
[Result "1-0"]
[Round "10"]
[TimeControl "180+1"]
[Date "2022.02.22"]
[WhiteClock "0:00:39"]
[BlackClock "0:00:01"]

1. d4 {[%clk 0:02:56]}  Nf6 {[%clk 0:02:59]} 2. Nf3 {[%clk 0:02:57]}  g6 {[%clk 0:03:00]} 3. Bg5 {[%clk 0:02:56]}  Bg7 {[%clk 0:03:00]} 4. Nbd2 {[%clk 0:02:57]}  d5 {[%clk 0:03:00]} 5. e3 {[%clk 0:02:57]}  O-O {[%clk 0:03:00]} 6. Bd3 {[%clk 0:02:57]}  c5 {[%clk 0:02:54]} 7. c3 {[%clk 0:02:58]}  Nc6 {[%clk 0:02:54]} 8. O-O {[%clk 0:02:55]}  Qb6 {[%clk 0:02:50]} 9. Qb1 {[%clk 0:02:46]}  h6 {[%clk 0:02:37]} 10. Bh4 {[%clk 0:02:45]}  g5 {[%clk 0:02:38]} 11. Bg3 {[%clk 0:02:45]}  Nh5 {[%clk 0:02:36]} 12. Be5 {[%clk 0:02:38]}  Nxe5 {[%clk 0:02:35]} 13. Nxe5 {[%clk 0:02:36]}  Bxe5 {[%clk 0:02:26]} 14. dxe5 {[%clk 0:02:36]}  Qe6 {[%clk 0:02:16]} 15. f4 {[%clk 0:02:35]}  f6 {[%clk 0:02:12]} 16. Bh7+ {[%clk 0:02:25]}  Kh8 {[%clk 0:02:08]} 17. Qg6 {[%clk 0:02:26]}  fxe5 {[%clk 0:01:43]} 18. Qxh5 {[%clk 0:02:25]}  Kxh7 {[%clk 0:01:28]} 19. fxg5 {[%clk 0:02:26]}  Bd7 {[%clk 0:01:23]} 20. gxh6 {[%clk 0:02:17]}  Rf6 {[%clk 0:01:12]} 21. Nf3 {[%clk 0:02:16]}  Qg4 {[%clk 0:00:49]} 22. Qxe5 {[%clk 0:02:03]}  Raf8 {[%clk 0:00:39]} 23. h3 {[%clk 0:01:37]}  Qg6 {[%clk 0:00:34]} 24. Qxe7+ {[%clk 0:01:27]}  R8f7 {[%clk 0:00:34]} 25. Qd8 {[%clk 0:01:02]}  Bxh3 {[%clk 0:00:26]} 26. Nh4 {[%clk 0:01:02]}  Rxf1+ {[%clk 0:00:20]} 27. Rxf1 {[%clk 0:01:03]}  Rxf1+ {[%clk 0:00:20]} 28. Kxf1 {[%clk 0:01:04]}  Qd3+ {[%clk 0:00:18]} 29. Kf2 {[%clk 0:00:58]}  Qd2+ {[%clk 0:00:18]} 30. Kf3 {[%clk 0:00:57]}  Qd1+ {[%clk 0:00:16]} 31. Kg3 {[%clk 0:00:56]}  Bg4 {[%clk 0:00:10]} 32. Qf6 {[%clk 0:00:51]}  Qe1+ {[%clk 0:00:08]} 33. Kxg4 {[%clk 0:00:52]}  Qe2+ {[%clk 0:00:08]} 34. Kf5 {[%clk 0:00:41]}  Qh5+ {[%clk 0:00:07]} 35. Ke6 {[%clk 0:00:41]}  Qe8+ {[%clk 0:00:07]} 36. Qe7+ {[%clk 0:00:41]}  Qxe7+ {[%clk 0:00:07]} 37. Kxe7 {[%clk 0:00:42]}  Kxh6 {[%clk 0:00:07]} 38. Kd6 {[%clk 0:00:42]}  Kh5 {[%clk 0:00:06]} 39. Nf3 {[%clk 0:00:40]}  b5 {[%clk 0:00:01]} 40. Kxc5 {[%clk 0:00:39]} 1-0


[Site "https://www.chess.com"]

[Event "Titled Tuesday Blitz February 22 Late 2022"]
[White "Sjugirov, Sanan"]
[Black "Martirosyan, Haik M."]
[WhiteFideId "4189302"]
[BlackFideId "13306553"]
[WhiteElo "2602"]
[BlackElo "2735"]
[Result "1-0"]
[Round "10"]
[TimeControl "180+1"]
[Date "2022.02.22"]
[WhiteClock "0:00:11"]
[BlackClock "0:00:11"]

1. d4 {[%clk 0:03:00]}  Nf6 {[%clk 0:02:57]} 2. c4 {[%clk 0:03:00]}  e6 {[%clk 0:02:56]} 3. Nf3 {[%clk 0:03:01]}  b6 {[%clk 0:02:56]} 4. g3 {[%clk 0:03:00]}  Ba6 {[%clk 0:02:56]} 5. b3 {[%clk 0:02:59]}  Bb4+ {[%clk 0:02:54]} 6. Bd2 {[%clk 0:02:59]}  Be7 {[%clk 0:02:55]} 7. Bg2 {[%clk 0:02:57]}  d5 {[%clk 0:02:56]} 8. cxd5 {[%clk 0:02:56]}  exd5 {[%clk 0:02:56]} 9. Nc3 {[%clk 0:02:56]}  O-O {[%clk 0:02:53]} 10. O-O {[%clk 0:02:56]}  Re8 {[%clk 0:02:53]} 11. Rc1 {[%clk 0:02:51]}  Nbd7 {[%clk 0:02:48]} 12. Rc2 {[%clk 0:02:41]}  Bb7 {[%clk 0:02:36]} 13. Ne5 {[%clk 0:02:38]}  c6 {[%clk 0:02:24]} 14. Bc1 {[%clk 0:02:15]}  Bd6 {[%clk 0:02:22]} 15. f4 {[%clk 0:02:11]}  Bb4 {[%clk 0:02:14]} 16. Bb2 {[%clk 0:02:02]}  Rc8 {[%clk 0:02:09]} 17. e3 {[%clk 0:02:01]}  Bxc3 {[%clk 0:01:57]} 18. Bxc3 {[%clk 0:02:01]}  Ne4 {[%clk 0:01:58]} 19. Bxe4 {[%clk 0:01:37]}  dxe4 {[%clk 0:01:57]} 20. Nxd7 {[%clk 0:01:27]}  Qxd7 {[%clk 0:01:58]} 21. f5 {[%clk 0:01:28]}  f6 {[%clk 0:01:54]} 22. g4 {[%clk 0:01:27]}  Ba6 {[%clk 0:01:50]} 23. Rf4 {[%clk 0:01:23]}  c5 {[%clk 0:01:44]} 24. Rg2 {[%clk 0:01:13]}  cxd4 {[%clk 0:01:37]} 25. Bxd4 {[%clk 0:01:14]}  Rc6 {[%clk 0:01:30]} 26. g5 {[%clk 0:00:33]}  Rec8 {[%clk 0:01:09]} 27. Qg4 {[%clk 0:00:23]}  Rc1+ {[%clk 0:01:01]} 28. Kf2 {[%clk 0:00:23]}  Rf1+ {[%clk 0:00:35]} 29. Kg3 {[%clk 0:00:23]}  Rf3+ {[%clk 0:00:35]} 30. Kh4 {[%clk 0:00:12]}  Bf1 {[%clk 0:00:22]} 31. Rg3 {[%clk 0:00:08]}  Be2 {[%clk 0:00:20]} 32. gxf6 {[%clk 0:00:06]}  Rc7 {[%clk 0:00:10]} 33. Qxg7+ {[%clk 0:00:05]}  Qxg7 {[%clk 0:00:10]} 34. Rxg7+ {[%clk 0:00:03]}  Rxg7 {[%clk 0:00:10]} 35. fxg7 {[%clk 0:00:03]}  Rxf4+ {[%clk 0:00:07]} 36. exf4 {[%clk 0:00:04]}  Kf7 {[%clk 0:00:06]} 37. f6 {[%clk 0:00:04]}  Bd3 {[%clk 0:00:05]} 38. Kg5 {[%clk 0:00:04]}  e3 {[%clk 0:00:05]} 39. Bxe3 {[%clk 0:00:04]}  Bb1 {[%clk 0:00:06]} 40. a3 {[%clk 0:00:04]}  a5 {[%clk 0:00:06]} 41. Bxb6 {[%clk 0:00:03]}  Bc2 {[%clk 0:00:07]} 42. Bxa5 {[%clk 0:00:03]}  Bxb3 {[%clk 0:00:08]} 43. Bb4 {[%clk 0:00:04]}  Kg8 {[%clk 0:00:07]} 44. Be7 {[%clk 0:00:04]}  Kf7 {[%clk 0:00:07]} 45. Kf5 {[%clk 0:00:05]}  h5 {[%clk 0:00:04]} 46. Ke5 {[%clk 0:00:05]}  h4 {[%clk 0:00:05]} 47. Kd4 {[%clk 0:00:06]}  h3 {[%clk 0:00:05]} 48. Kc5 {[%clk 0:00:06]}  Be6 {[%clk 0:00:05]} 49. a4 {[%clk 0:00:06]}  Bg4 {[%clk 0:00:04]} 50. a5 {[%clk 0:00:06]}  Be2 {[%clk 0:00:05]} 51. Kb6 {[%clk 0:00:07]}  Bc4 {[%clk 0:00:05]} 52. a6 {[%clk 0:00:07]}  Bd5 {[%clk 0:00:06]} 53. a7 {[%clk 0:00:07]}  Kg8 {[%clk 0:00:06]} 54. Kc7 {[%clk 0:00:08]}  Kf7 {[%clk 0:00:07]} 55. Kb8 {[%clk 0:00:08]}  Kg8 {[%clk 0:00:07]} 56. a8=Q {[%clk 0:00:09]}  Bxa8 {[%clk 0:00:08]} 57. Kxa8 {[%clk 0:00:10]}  Kf7 {[%clk 0:00:09]} 58. Kb7 {[%clk 0:00:11]}  Kg8 {[%clk 0:00:10]} 59. Kc6 {[%clk 0:00:11]}  Kf7 {[%clk 0:00:11]} 1-0


[Site "https://www.chess.com"]

[Event "Titled Tuesday Blitz February 22 Late 2022"]
[White "Terry, Renato"]
[Black "Paravyan, David"]
[WhiteFideId "3803457"]
[BlackFideId "4194985"]
[WhiteElo "2577"]
[BlackElo "2569"]
[Result "1-0"]
[Round "10"]
[TimeControl "180+1"]
[Date "2022.02.22"]
[WhiteClock "0:00:12"]
[BlackClock "0:00:07"]

1. b3 {[%clk 0:03:00]}  e5 {[%clk 0:02:55]} 2. Bb2 {[%clk 0:03:01]}  Nc6 {[%clk 0:02:55]} 3. e3 {[%clk 0:03:01]}  Nf6 {[%clk 0:02:55]} 4. Bb5 {[%clk 0:03:00]}  Qe7 {[%clk 0:02:56]} 5. Ne2 {[%clk 0:02:58]}  a6 {[%clk 0:02:55]} 6. Bxc6 {[%clk 0:02:58]}  dxc6 {[%clk 0:02:56]} 7. d3 {[%clk 0:02:57]}  h5 {[%clk 0:02:56]} 8. h3 {[%clk 0:02:53]}  h4 {[%clk 0:02:50]} 9. Nd2 {[%clk 0:02:53]}  Rh6 {[%clk 0:02:43]} 10. Nc3 {[%clk 0:02:50]}  Bf5 {[%clk 0:02:42]} 11. Qf3 {[%clk 0:02:39]}  Bg6 {[%clk 0:02:39]} 12. Qe2 {[%clk 0:02:39]}  O-O-O {[%clk 0:02:38]} 13. O-O-O {[%clk 0:02:39]}  Bh5 {[%clk 0:02:36]} 14. f3 {[%clk 0:02:35]}  Qe8 {[%clk 0:02:35]} 15. e4 {[%clk 0:02:21]}  Bg6 {[%clk 0:02:30]} 16. Qf2 {[%clk 0:02:17]}  Kb8 {[%clk 0:02:28]} 17. Nc4 {[%clk 0:02:15]}  Nd7 {[%clk 0:02:05]} 18. Ne2 {[%clk 0:02:13]}  c5 {[%clk 0:02:01]} 19. f4 {[%clk 0:02:11]}  exf4 {[%clk 0:01:47]} 20. Nxf4 {[%clk 0:02:12]}  Bh7 {[%clk 0:01:45]} 21. Rhf1 {[%clk 0:02:08]}  Nb6 {[%clk 0:01:14]} 22. Nxb6 {[%clk 0:01:59]}  cxb6 {[%clk 0:01:15]} 23. Rde1 {[%clk 0:01:52]}  Ka7 {[%clk 0:01:14]} 24. Nd5 {[%clk 0:01:48]}  f6 {[%clk 0:01:12]} 25. Kb1 {[%clk 0:01:43]}  Bd6 {[%clk 0:01:05]} 26. a4 {[%clk 0:01:38]}  Bg3 {[%clk 0:01:03]} 27. Qg1 {[%clk 0:01:35]}  Bxe1 {[%clk 0:01:02]} 28. Rxe1 {[%clk 0:01:36]}  Qc6 {[%clk 0:00:57]} 29. Ne3 {[%clk 0:01:25]}  Rh5 {[%clk 0:00:45]} 30. Qf2 {[%clk 0:01:25]}  Bg6 {[%clk 0:00:40]} 31. Nd5 {[%clk 0:01:23]}  Rhxd5 {[%clk 0:00:32]} 32. exd5 {[%clk 0:01:24]}  Qxd5 {[%clk 0:00:33]} 33. Re7 {[%clk 0:01:21]}  Rd7 {[%clk 0:00:29]} 34. Rxd7 {[%clk 0:01:21]}  Qxd7 {[%clk 0:00:30]} 35. Qxh4 {[%clk 0:01:21]}  a5 {[%clk 0:00:28]} 36. Qf2 {[%clk 0:01:09]}  Bf5 {[%clk 0:00:26]} 37. Bc3 {[%clk 0:01:06]}  Qd5 {[%clk 0:00:25]} 38. Kb2 {[%clk 0:01:07]}  Be6 {[%clk 0:00:23]} 39. Qg3 {[%clk 0:01:05]}  Qd7 {[%clk 0:00:23]} 40. Qf4 {[%clk 0:01:05]}  Bd5 {[%clk 0:00:21]} 41. g4 {[%clk 0:01:03]}  Be6 {[%clk 0:00:20]} 42. Qf2 {[%clk 0:00:57]}  Qd5 {[%clk 0:00:18]} 43. Qg3 {[%clk 0:00:57]}  Qd7 {[%clk 0:00:15]} 44. Qf4 {[%clk 0:00:55]}  Ka6 {[%clk 0:00:10]} 45. Qb8 {[%clk 0:00:54]}  Qc8 {[%clk 0:00:10]} 46. Qd6 {[%clk 0:00:54]}  Qd7 {[%clk 0:00:10]} 47. Qf8 {[%clk 0:00:53]}  Ka7 {[%clk 0:00:10]} 48. Kc1 {[%clk 0:00:47]}  Bd5 {[%clk 0:00:10]} 49. Bd2 {[%clk 0:00:45]}  Qc7 {[%clk 0:00:07]} 50. h4 {[%clk 0:00:42]}  Qe5 {[%clk 0:00:08]} 51. Kb1 {[%clk 0:00:38]}  Qc7 {[%clk 0:00:05]} 52. g5 {[%clk 0:00:33]}  fxg5 {[%clk 0:00:06]} 53. hxg5 {[%clk 0:00:32]}  b5 {[%clk 0:00:02]} 54. axb5 {[%clk 0:00:28]}  b6 {[%clk 0:00:02]} 55. Bf4 {[%clk 0:00:27]}  Qb7 {[%clk 0:00:03]} 56. g6 {[%clk 0:00:26]}  Bf3 {[%clk 0:00:03]} 57. Bb8+ {[%clk 0:00:16]}  Qxb8 {[%clk 0:00:03]} 58. Qxf3 {[%clk 0:00:17]}  Qe5 {[%clk 0:00:03]} 59. Qc6 {[%clk 0:00:10]}  Qe7 {[%clk 0:00:03]} 60. Qd5 {[%clk 0:00:08]}  Qe1+ {[%clk 0:00:03]} 61. Kb2 {[%clk 0:00:08]}  Qe7 {[%clk 0:00:01]} 62. Qf7 {[%clk 0:00:08]}  Qb7 {[%clk 0:00:02]} 63. Kc3 {[%clk 0:00:07]}  Kb8 {[%clk 0:00:03]} 64. Qxb7+ {[%clk 0:00:07]}  Kxb7 {[%clk 0:00:04]} 65. Kc4 {[%clk 0:00:07]}  Kc7 {[%clk 0:00:04]} 66. Kd5 {[%clk 0:00:08]}  Kd7 {[%clk 0:00:04]} 67. c3 {[%clk 0:00:08]}  Kc7 {[%clk 0:00:04]} 68. d4 {[%clk 0:00:08]}  cxd4 {[%clk 0:00:05]} 69. cxd4 {[%clk 0:00:09]}  Kd7 {[%clk 0:00:05]} 70. Ke5 {[%clk 0:00:10]}  Ke7 {[%clk 0:00:05]} 71. d5 {[%clk 0:00:10]}  Kd7 {[%clk 0:00:06]} 72. d6 {[%clk 0:00:11]}  Kd8 {[%clk 0:00:05]} 73. Ke6 {[%clk 0:00:11]}  Ke8 {[%clk 0:00:05]} 74. d7+ {[%clk 0:00:12]}  Kd8 {[%clk 0:00:06]} 75. Kf7 {[%clk 0:00:12]}  Kxd7 {[%clk 0:00:07]} 76. Kxg7 {[%clk 0:00:12]} 1-0


[Site "https://www.chess.com"]

[Event "Titled Tuesday Blitz February 22 Late 2022"]
[White "Thomas, Anysia"]
[Black "Mickiewicz, Piotr"]
[WhiteFideId "670472"]
[BlackFideId "1114891"]
[WhiteElo "2002"]
[BlackElo "2266"]
[Result "0-1"]
[Round "10"]
[TimeControl "180+1"]
[Date "2022.02.23"]
[WhiteClock "0:00:03"]
[BlackClock "0:00:36"]

1. d4 {[%clk 0:03:00]}  e6 {[%clk 0:02:59]} 2. c4 {[%clk 0:03:00]}  Bb4+ {[%clk 0:02:58]} 3. Nd2 {[%clk 0:02:59]}  a5 {[%clk 0:02:59]} 4. e4 {[%clk 0:02:57]}  d6 {[%clk 0:02:57]} 5. Bd3 {[%clk 0:02:57]}  e5 {[%clk 0:02:56]} 6. Nf3 {[%clk 0:02:56]}  Qe7 {[%clk 0:02:48]} 7. O-O {[%clk 0:02:55]}  Bxd2 {[%clk 0:02:40]} 8. Bxd2 {[%clk 0:02:51]}  Nf6 {[%clk 0:02:40]} 9. Bg5 {[%clk 0:02:50]}  h6 {[%clk 0:02:38]} 10. Bh4 {[%clk 0:02:48]}  g5 {[%clk 0:02:32]} 11. dxe5 {[%clk 0:02:47]}  dxe5 {[%clk 0:02:31]} 12. Bg3 {[%clk 0:02:46]}  Nc6 {[%clk 0:02:31]} 13. c5 {[%clk 0:02:40]}  Bg4 {[%clk 0:02:29]} 14. Qb3 {[%clk 0:02:14]}  Bxf3 {[%clk 0:02:23]} 15. gxf3 {[%clk 0:02:12]}  O-O {[%clk 0:02:18]} 16. a3 {[%clk 0:01:40]}  Nd4 {[%clk 0:02:17]} 17. Qd1 {[%clk 0:01:29]}  Rfd8 {[%clk 0:02:14]} 18. Kg2 {[%clk 0:01:27]}  Qxc5 {[%clk 0:02:08]} 19. Rc1 {[%clk 0:01:24]}  Qe7 {[%clk 0:02:08]} 20. Qa4 {[%clk 0:01:18]}  c6 {[%clk 0:02:03]} 21. Qc4 {[%clk 0:01:07]}  b5 {[%clk 0:01:48]} 22. Qc3 {[%clk 0:00:57]}  Nd7 {[%clk 0:01:29]} 23. Bb1 {[%clk 0:00:48]}  a4 {[%clk 0:01:28]} 24. Rfe1 {[%clk 0:00:44]}  Kg7 {[%clk 0:01:27]} 25. Rcd1 {[%clk 0:00:27]}  f6 {[%clk 0:01:28]} 26. Rh1 {[%clk 0:00:26]}  Nc5 {[%clk 0:01:26]} 27. h4 {[%clk 0:00:24]}  Nce6 {[%clk 0:01:22]} 28. hxg5 {[%clk 0:00:24]}  hxg5 {[%clk 0:01:21]} 29. Rh2 {[%clk 0:00:22]}  Rh8 {[%clk 0:01:20]} 30. Rdh1 {[%clk 0:00:22]}  Rxh2+ {[%clk 0:01:19]} 31. Rxh2 {[%clk 0:00:23]}  Rh8 {[%clk 0:01:19]} 32. Ba2 {[%clk 0:00:14]}  Rxh2+ {[%clk 0:01:17]} 33. Bxh2 {[%clk 0:00:15]}  Qc5 {[%clk 0:01:13]} 34. Qe1 {[%clk 0:00:06]}  Qc2 {[%clk 0:00:57]} 35. Qb4 {[%clk 0:00:03]}  Qc5 {[%clk 0:00:39]} 36. Qxb5 {[%clk 0:00:03]}  cxb5 {[%clk 0:00:36]} 0-1


[Site "https://www.chess.com"]

[Event "Titled Tuesday Blitz February 22 Late 2022"]
[White "Timofeev, Artyom"]
[Black "Hjartarson, Johann"]
[WhiteFideId "4140419"]
[BlackFideId "2300044"]
[WhiteElo "2583"]
[BlackElo "2484"]
[Result "1-0"]
[Round "10"]
[TimeControl "180+1"]
[Date "2022.02.22"]
[WhiteClock "0:00:09"]
[BlackClock "0:00:03"]

1. d4 {[%clk 0:03:00]}  Nf6 {[%clk 0:02:58]} 2. c4 {[%clk 0:03:00]}  e6 {[%clk 0:02:58]} 3. Nc3 {[%clk 0:03:00]}  Bb4 {[%clk 0:02:57]} 4. e3 {[%clk 0:03:01]}  O-O {[%clk 0:02:56]} 5. Bd3 {[%clk 0:03:00]}  d5 {[%clk 0:02:55]} 6. Nf3 {[%clk 0:03:00]}  c5 {[%clk 0:02:55]} 7. cxd5 {[%clk 0:02:56]}  Nxd5 {[%clk 0:02:51]} 8. Bd2 {[%clk 0:02:56]}  cxd4 {[%clk 0:02:48]} 9. Nxd4 {[%clk 0:02:56]}  Nxc3 {[%clk 0:02:45]} 10. Bxc3 {[%clk 0:02:51]}  Bxc3+ {[%clk 0:02:45]} 11. bxc3 {[%clk 0:02:51]}  Nd7 {[%clk 0:02:43]} 12. O-O {[%clk 0:02:50]}  Nc5 {[%clk 0:02:42]} 13. Bxh7+ {[%clk 0:02:48]}  Kxh7 {[%clk 0:02:40]} 14. Qh5+ {[%clk 0:02:48]}  Kg8 {[%clk 0:02:40]} 15. Qxc5 {[%clk 0:02:48]}  b6 {[%clk 0:02:39]} 16. Qh5 {[%clk 0:02:33]}  Ba6 {[%clk 0:02:37]} 17. Rfc1 {[%clk 0:02:30]}  Rc8 {[%clk 0:02:34]} 18. a4 {[%clk 0:02:28]}  Rc5 {[%clk 0:02:29]} 19. Qf3 {[%clk 0:02:23]}  Qc7 {[%clk 0:02:28]} 20. h4 {[%clk 0:02:11]}  Rxc3 {[%clk 0:02:22]} 21. Rd1 {[%clk 0:02:11]}  Rc8 {[%clk 0:02:08]} 22. h5 {[%clk 0:02:09]}  Qe5 {[%clk 0:02:02]} 23. Qg4 {[%clk 0:02:07]}  Qf6 {[%clk 0:01:51]} 24. a5 {[%clk 0:02:01]}  Bc4 {[%clk 0:01:46]} 25. axb6 {[%clk 0:01:52]}  axb6 {[%clk 0:01:45]} 26. Rab1 {[%clk 0:01:47]}  Bd5 {[%clk 0:01:19]} 27. Rxb6 {[%clk 0:01:40]}  Rc1 {[%clk 0:01:19]} 28. Rb1 {[%clk 0:01:39]}  Rxd1+ {[%clk 0:01:16]} 29. Rxd1 {[%clk 0:01:39]}  Ra8 {[%clk 0:01:13]} 30. Ne2 {[%clk 0:01:25]}  Ra2 {[%clk 0:01:06]} 31. Rf1 {[%clk 0:01:25]}  Kh7 {[%clk 0:01:01]} 32. Nf4 {[%clk 0:01:19]}  Be4 {[%clk 0:00:59]} 33. Qd1 {[%clk 0:00:47]}  e5 {[%clk 0:00:52]} 34. Ne2 {[%clk 0:00:41]}  Qc6 {[%clk 0:00:23]} 35. f3 {[%clk 0:00:36]}  Bc2 {[%clk 0:00:20]} 36. Qd2 {[%clk 0:00:34]}  Qc4 {[%clk 0:00:17]} 37. Nc3 {[%clk 0:00:27]}  Rb2 {[%clk 0:00:16]} 38. Rc1 {[%clk 0:00:23]}  Qd3 {[%clk 0:00:15]} 39. Qxd3+ {[%clk 0:00:19]}  Bxd3 {[%clk 0:00:15]} 40. Nd5 {[%clk 0:00:20]}  Kh6 {[%clk 0:00:14]} 41. Rc7 {[%clk 0:00:14]}  f6 {[%clk 0:00:12]} 42. e4 {[%clk 0:00:09]}  Ba6 {[%clk 0:00:03]} 43. Ne3 {[%clk 0:00:09]} 1-0


[Site "https://www.chess.com"]

[Event "Titled Tuesday Blitz February 22 Late 2022"]
[White "Tregubov, Pavel V."]
[Black "Ibarra Jerez, Jose Carlos"]
[WhiteFideId "4115341"]
[BlackFideId "2226332"]
[WhiteElo "2341"]
[BlackElo "2626"]
[Result "0-1"]
[Round "10"]
[TimeControl "180+1"]
[Date "2022.02.22"]
[WhiteClock "0:00:13"]
[BlackClock "0:01:08"]

1. e4 {[%clk 0:03:00]}  e6 {[%clk 0:02:58]} 2. d4 {[%clk 0:03:00]}  d5 {[%clk 0:02:57]} 3. exd5 {[%clk 0:03:01]}  exd5 {[%clk 0:02:57]} 4. Nf3 {[%clk 0:03:01]}  Nc6 {[%clk 0:02:56]} 5. h3 {[%clk 0:03:00]}  Bd6 {[%clk 0:02:56]} 6. Bd3 {[%clk 0:02:58]}  Nge7 {[%clk 0:02:56]} 7. O-O {[%clk 0:02:56]}  Nb4 {[%clk 0:02:55]} 8. Bb5+ {[%clk 0:02:45]}  c6 {[%clk 0:02:54]} 9. Be2 {[%clk 0:02:41]}  Bf5 {[%clk 0:02:53]} 10. Na3 {[%clk 0:02:41]}  a5 {[%clk 0:02:38]} 11. c3 {[%clk 0:02:41]}  Na6 {[%clk 0:02:39]} 12. Nc2 {[%clk 0:02:40]}  h6 {[%clk 0:02:40]} 13. Ne3 {[%clk 0:02:39]}  Bh7 {[%clk 0:02:40]} 14. Bd3 {[%clk 0:02:37]}  Bxd3 {[%clk 0:02:37]} 15. Qxd3 {[%clk 0:02:37]}  O-O {[%clk 0:02:38]} 16. Ng4 {[%clk 0:02:31]}  Ng6 {[%clk 0:02:34]} 17. Re1 {[%clk 0:02:28]}  Nc7 {[%clk 0:02:34]} 18. Nfe5 {[%clk 0:02:26]}  Bxe5 {[%clk 0:02:21]} 19. Nxe5 {[%clk 0:02:25]}  Nxe5 {[%clk 0:02:21]} 20. dxe5 {[%clk 0:02:20]}  Qh4 {[%clk 0:02:18]} 21. Qf5 {[%clk 0:02:03]}  Ne6 {[%clk 0:02:08]} 22. g3 {[%clk 0:02:02]}  Qe7 {[%clk 0:02:04]} 23. Be3 {[%clk 0:02:01]}  a4 {[%clk 0:01:57]} 24. Rad1 {[%clk 0:01:50]}  Rae8 {[%clk 0:01:53]} 25. c4 {[%clk 0:01:49]}  dxc4 {[%clk 0:01:46]} 26. Qg4 {[%clk 0:01:49]}  b5 {[%clk 0:01:31]} 27. Bxh6 {[%clk 0:01:47]}  f5 {[%clk 0:01:32]} 28. exf6 {[%clk 0:01:45]}  Qxf6 {[%clk 0:01:32]} 29. Be3 {[%clk 0:01:42]}  Qxb2 {[%clk 0:01:28]} 30. Rd7 {[%clk 0:01:37]}  Qf6 {[%clk 0:01:25]} 31. Rd6 {[%clk 0:01:30]}  Qe5 {[%clk 0:01:20]} 32. Rxc6 {[%clk 0:01:25]}  Nd4 {[%clk 0:01:16]} 33. Bxd4 {[%clk 0:00:27]}  Qxe1+ {[%clk 0:01:13]} 34. Kg2 {[%clk 0:00:28]}  Qe4+ {[%clk 0:01:12]} 35. Qxe4 {[%clk 0:00:28]}  Rxe4 {[%clk 0:01:12]} 36. Bc3 {[%clk 0:00:24]}  Re2 {[%clk 0:01:09]} 37. Bd4 {[%clk 0:00:16]}  Rxa2 {[%clk 0:01:08]} 38. Rc7 {[%clk 0:00:13]}  Rf7 {[%clk 0:01:08]} 39. Rc8+ {[%clk 0:00:13]}  Kh7 {[%clk 0:01:08]} 0-1


[Site "https://www.chess.com"]

[Event "Titled Tuesday Blitz February 22 Late 2022"]
[White "Van den Dikkenberg, Erik"]
[Black "Elissalt Cardenas, Hector"]
[WhiteFideId "1005880"]
[BlackFideId "3500632"]
[WhiteElo "2118"]
[BlackElo "2159"]
[Result "0-1"]
[Round "10"]
[TimeControl "180+1"]
[Date "2022.02.23"]
[WhiteClock "0:00:53"]
[BlackClock "0:00:52"]

1. e4 {[%clk 0:03:00]}  d6 {[%clk 0:02:55]} 2. d4 {[%clk 0:03:00]}  Nf6 {[%clk 0:02:52]} 3. Nc3 {[%clk 0:03:00]}  e5 {[%clk 0:02:53]} 4. Nf3 {[%clk 0:02:59]}  Nbd7 {[%clk 0:02:51]} 5. Rg1 {[%clk 0:02:58]}  g6 {[%clk 0:02:43]} 6. g4 {[%clk 0:02:55]}  Bg7 {[%clk 0:02:39]} 7. g5 {[%clk 0:02:55]}  Nh5 {[%clk 0:02:34]} 8. d5 {[%clk 0:02:44]}  O-O {[%clk 0:02:30]} 9. Be2 {[%clk 0:02:37]}  Nf4 {[%clk 0:02:25]} 10. Bxf4 {[%clk 0:02:35]}  exf4 {[%clk 0:02:23]} 11. Qd2 {[%clk 0:02:32]}  Nc5 {[%clk 0:02:10]} 12. Qxf4 {[%clk 0:02:16]}  Qe7 {[%clk 0:01:58]} 13. Bd3 {[%clk 0:02:06]}  Bd7 {[%clk 0:01:50]} 14. O-O-O {[%clk 0:02:01]}  f5 {[%clk 0:01:44]} 15. exf5 {[%clk 0:01:52]}  Bxf5 {[%clk 0:01:42]} 16. Bxf5 {[%clk 0:01:39]}  Rxf5 {[%clk 0:01:40]} 17. Qg3 {[%clk 0:01:26]}  Raf8 {[%clk 0:01:39]} 18. Nd4 {[%clk 0:01:23]}  Rxf2 {[%clk 0:01:38]} 19. Ne6 {[%clk 0:01:16]}  Nxe6 {[%clk 0:01:30]} 20. dxe6 {[%clk 0:01:16]}  Qxe6 {[%clk 0:01:30]} 21. Nd5 {[%clk 0:01:09]}  c6 {[%clk 0:01:12]} 22. Nf6+ {[%clk 0:01:08]}  Bxf6 {[%clk 0:01:05]} 23. gxf6 {[%clk 0:01:04]}  R8xf6 {[%clk 0:01:03]} 24. Rge1 {[%clk 0:01:02]}  Qxa2 {[%clk 0:01:02]} 25. Re8+ {[%clk 0:00:53]}  Kf7 {[%clk 0:00:52]} 0-1


[Site "https://www.chess.com"]

[Event "Titled Tuesday Blitz February 22 Late 2022"]
[White "Vlassov, Nikolai"]
[Black "Kopczynski, Michal"]
[WhiteFideId "4103360"]
[BlackFideId "1124200"]
[WhiteElo "2407"]
[BlackElo "2235"]
[Result "1-0"]
[Round "10"]
[TimeControl "180+1"]
[Date "2022.02.23"]
[WhiteClock "0:01:52"]
[BlackClock "0:02:15"]

1. e4 {[%clk 0:03:00]}  c5 {[%clk 0:02:59]} 2. c3 {[%clk 0:03:01]}  d5 {[%clk 0:02:59]} 3. exd5 {[%clk 0:03:01]}  Qxd5 {[%clk 0:03:00]} 4. d4 {[%clk 0:03:01]}  cxd4 {[%clk 0:03:00]} 5. cxd4 {[%clk 0:03:01]}  Nc6 {[%clk 0:03:01]} 6. Nf3 {[%clk 0:03:01]}  Bg4 {[%clk 0:03:00]} 7. Nc3 {[%clk 0:03:00]}  Bxf3 {[%clk 0:02:58]} 8. gxf3 {[%clk 0:03:00]}  Qxd4 {[%clk 0:02:54]} 9. Qxd4 {[%clk 0:03:00]}  Nxd4 {[%clk 0:02:55]} 10. Nb5 {[%clk 0:03:00]}  O-O-O {[%clk 0:02:50]} 11. Nxd4 {[%clk 0:02:57]}  Rxd4 {[%clk 0:02:50]} 12. Be3 {[%clk 0:02:57]}  Rb4 {[%clk 0:02:46]} 13. Bxa7 {[%clk 0:02:43]}  Rxb2 {[%clk 0:02:44]} 14. Bd3 {[%clk 0:02:11]}  e5 {[%clk 0:02:38]} 15. Bf5+ {[%clk 0:01:55]}  Kd8 {[%clk 0:02:15]} 16. O-O-O+ {[%clk 0:01:52]} 1-0


[Site "https://www.chess.com"]